bitfinex-derivatives/quotes_BNBF0:USTF0_20250904
["timestamp","ask_amount","ask_price","bid_price","bid_amount"]
[1757026633403,0.20504783,848.94,847.7,1.0620303]
[1757026634508,0.20504783,848.94,847.69,1.0620303]
[1757026635310,0.20504783,848.94,847.68,1.0620303]
[1757026636209,0.20504783,848.94,847.77,1.0620303]
[1757026636705,0.20504783,848.94,847.76,1.0620303]
[1757026637009,0.20504783,848.94,847.77,1.0620303]
[1757026637310,0.20504783,848.94,847.76,1.0620303]
[1757026638209,0.20504783,848.94,847.77,1.0620303]
[1757026638411,0.20504783,848.94,847.76,1.0620303]
[1757026639011,0.20504783,848.94,847.75,1.0620303]
[1757026639207,0.20504783,848.94,847.76,1.0620303]
[1757026639412,0.20504783,848.94,847.75,1.0620303]
[1757026639613,0.20504783,848.94,847.76,1.0620303]
[1757026639808,0.20504783,848.94,847.84,1.0620303]
[1757026640213,0.20504783,848.94,847.69,1.5930455]
[1757026640214,0.20504783,848.94,847.85,1.0620303]
[1757026640514,0.20504783,848.94,847.84,1.0620303]
[1757026641314,0.20504783,848.94,847.83,1.0620303]
[1757026642112,0.20504783,848.94,847.84,1.0620303]
[1757026643118,0.20504783,848.94,847.85,1.0620303]
[1757026643318,0.20504783,848.94,847.84,1.0620303]
[1757026644021,0.20504783,848.94,847.86,1.0620303]
[1757026644422,0.20504783,848.94,847.85,1.0620303]
[1757026644821,0.20504783,848.94,847.42,1.0620303]
[1757026645022,0.20504783,848.94,847.08,1.0620303]
[1757026645224,0.79546818,848.9,847.24,1.0620303]
[1757026645522,0.79546818,848.93,847.29,1.0620303]
[1757026645722,0.20504783,848.94,847.32,1.0620303]
[1757026646128,0.20504783,848.94,847.33,1.0620303]
[1757026647024,0.20504783,848.94,847.34,1.0620303]
[1757026647328,0.20504783,848.94,847.35,1.0620303]
[1757026648328,1.00051601,848.94,847.35,1.0620303]
[1757026648830,1.00051601,848.94,847.36,1.0620303]
[1757026650126,1.00051601,848.94,847.37,1.0620303]
[1757026650331,1.00051601,848.94,847.43,1.0620303]
[1757026650527,0.20504783,848.94,847.43,1.0620303]
[1757026651031,0.20504783,848.94,847.45,1.0620303]
[1757026651232,0.20504783,848.94,847.48,1.0620303]
[1757026651429,0.20504783,848.94,847.5,1.0620303]
[1757026651830,0.20504783,848.94,847.51,1.0620303]
[1757026652035,0.20504783,848.94,847.5,1.0620303]
[1757026652233,0.20504783,848.94,847.51,1.0620303]
[1757026652432,0.20504783,848.94,847.58,1.0620303]
[1757026653135,0.20504783,848.94,847.59,1.0620303]
[1757026655136,0.79546818,848.93,847.62,1.0620303]
[1757026655439,0.20504783,848.94,847.66,1.0620303]
[1757026656836,0.79081308,848.93,847.7,1.0620303]
[1757026657845,0.79081308,848.92,847.71,1.0620303]
[1757026658242,0.79081308,848.92,847.72,1.0620303]
[1757026658438,0.79081308,848.91,847.72,1.0620303]
[1757026658740,0.79081308,848.9,847.7,1.0620303]
[1757026658941,0.79081308,848.92,847.68,1.0620303]
[1757026659144,0.79081308,848.92,847.69,1.0620303]
[1757026660041,0.79081308,848.93,847.7,1.0620303]
[1757026660445,0.79081308,848.93,847.71,1.0620303]
[1757026660644,0.20504783,848.94,847.67,1.0620303]
[1757026660945,0.20504783,848.94,847.68,1.0620303]
[1757026661342,0.20504783,848.94,847.69,1.0620303]
[1757026662447,0.20504783,848.94,847.7,1.0620303]
[1757026663345,0.20504783,848.94,847.71,1.0620303]
[1757026664750,0.20504783,848.94,847.69,1.0620303]
[1757026664954,0.20504783,848.94,847.72,1.0620303]
[1757026665155,0.20504783,848.94,847.73,1.0620303]
[1757026665350,0.20504783,848.94,847.79,1.0620303]
[1757026665548,0.20504783,848.94,847.86,1.0620303]
[1757026666145,0.20504783,848.94,847.87,1.0620303]
[1757026666446,0.79081308,849.14,847.87,1.0620303]
[1757026666647,0.20501461,849.02,847.87,1.0620303]
[1757026666849,0.20501461,849.02,847.93,1.0620303]
[1757026667248,0.20501461,849.02,847.94,1.0620303]
[1757026667551,0.20501461,849.02,847.93,1.0620303]
[1757026667753,0.20501461,849.02,847.95,1.0620303]
[1757026668053,0.20501461,849.02,847.96,1.0620303]
[1757026668250,0.20501461,849.02,847.98,1.0620303]
[1757026668452,0.20501461,849.02,848.0,1.0620303]
[1757026669052,0.20501461,849.02,848.01,1.0620303]
[1757026669252,0.79081308,849.17,848.01,1.0620303]
[1757026669453,0.79081308,849.23,847.96,1.0620303]
[1757026669963,0.79081308,849.28,848.01,1.0620303]
[1757026670156,0.79081308,849.28,848.02,1.0620303]
[1757026670353,0.79081308,849.28,848.01,1.0620303]
[1757026671563,0.79081308,849.29,848.01,1.0620303]
[1757026672259,0.79081308,849.28,848.02,1.0620303]
[1757026672458,0.79081308,849.6,848.07,1.0620303]
[1757026672758,0.79081308,849.6,847.78,1.5930455]
[1757026672759,0.79081308,849.63,848.11,1.0620303]
[1757026673059,0.79081308,849.61,848.13,1.0620303]
[1757026673260,2.6526306,851.24,846.78,2.6550758]
[1757026673261,0.79081308,849.62,848.1,1.0620303]
[1757026673455,0.79081308,849.6,848.12,1.0620303]
[1757026673659,0.79081308,849.6,848.13,1.0620303]
[1757026673861,0.79081308,849.59,848.14,1.0620303]
[1757026674157,0.20493372,849.31,848.15,1.0620303]
[1757026674359,0.20493372,849.31,848.12,1.0620303]
[1757026674962,0.20493372,849.31,848.22,1.0620303]
[1757026675458,0.20493372,849.31,848.2,1.0620303]
[1757026676062,0.20493372,849.31,848.19,1.0620303]
[1757026676360,0.20493372,849.31,848.17,1.0620303]
[1757026676557,0.20493372,849.31,848.19,1.0620303]
[1757026677463,0.20493372,849.31,848.2,1.0620303]
[1757026677762,0.20493372,849.31,848.03,1.5930455]
[1757026677763,0.20493372,849.31,848.21,1.0620303]
[1757026677962,0.20493372,849.31,848.19,1.0620303]
[1757026678460,0.20493372,849.31,848.16,1.0620303]
[1757026679362,0.20493372,849.31,848.15,1.0620303]
[1757026680263,0.20493372,849.31,848.16,1.0620303]
[1757026681163,0.20493372,849.31,848.14,1.0620303]
[1757026681564,0.20493372,849.31,848.15,1.0620303]
[1757026682067,0.20493372,849.31,848.14,1.0620303]
[1757026683066,0.20493372,849.31,848.12,1.0620303]
[1757026683276,0.20493372,849.31,848.13,1.0620303]
[1757026683769,0.20493372,849.31,848.15,1.0620303]
[1757026683968,0.20493372,849.31,848.13,1.0620303]
[1757026684271,0.79081308,849.58,848.11,1.0620303]
[1757026684473,0.20492467,849.4,848.11,1.0620303]
[1757026685174,0.20492467,849.4,848.1,1.0620303]
[1757026686069,0.20492467,849.4,848.09,1.0620303]
[1757026686276,0.20492467,849.4,848.15,1.0620303]
[1757026687376,0.20492467,849.4,848.19,1.0620303]
[1757026687573,0.20492467,849.4,847.99,1.0620303]
[1757026687974,0.79081308,849.87,848.33,0.78512695]
[1757026688172,0.79081308,849.87,846.59,2.6550758]
[1757026688173,0.79081308,849.92,848.37,0.78512695]
[1757026688376,0.20490416,849.53,848.39,0.78512695]
[1757026689077,0.20490416,849.53,848.45,0.78512695]
[1757026689373,0.20490416,849.53,848.46,0.78512695]
[1757026689882,0.20490416,849.53,848.45,0.78512695]
[1757026690072,0.20490416,849.53,848.44,0.78512695]
[1757026691176,0.20490416,849.53,848.42,0.78512695]
[1757026691578,0.20490416,849.53,848.29,0.78512695]
[1757026692280,0.20490416,849.53,848.28,0.78512695]
[1757026693180,0.20490416,849.53,848.27,0.78512695]
[1757026694178,0.20490416,849.53,848.25,0.78512695]
[1757026695183,0.20490416,849.53,848.24,0.78512695]
[1757026695682,0.20490416,849.53,848.31,0.78512695]
[1757026696283,0.20490416,849.53,848.32,0.78512695]
[1757026696484,0.20490416,849.53,848.33,0.78512695]
[1757026698090,0.20490416,849.53,848.32,0.78512695]
[1757026698584,0.20490416,849.53,848.33,0.78512695]
[1757026699184,0.20490416,849.53,848.38,0.78512695]
[1757026699391,0.20490416,849.53,848.42,0.78512695]
[1757026700383,0.20490416,849.53,848.41,0.78512695]
[1757026701484,0.20490416,849.53,848.4,0.78512695]
[1757026704086,0.20490416,849.53,848.39,0.78512695]
[1757026705094,0.20490416,849.53,848.38,0.78512695]
[1757026705286,0.20490416,849.53,848.39,0.78512695]
[1757026706286,0.20490416,849.53,848.38,0.78512695]
[1757026706484,0.20490416,849.53,848.39,0.78512695]
[1757026707189,0.79081308,849.95,848.39,0.78512695]
[1757026707385,0.79081308,850.18,848.49,0.78512695]
[1757026707586,0.79081308,850.18,846.87,3.7171062]
[1757026707587,0.20485531,849.71,848.5,0.78512695]
[1757026707987,0.20485531,849.71,848.52,0.78512695]
[1757026708186,0.20485531,849.71,848.53,0.78512695]
[1757026708386,0.20485531,849.71,848.55,0.78512695]
[1757026708590,0.20485531,849.71,848.56,0.78512695]
[1757026708791,0.20485531,849.71,848.58,0.78512695]
[1757026708987,0.20485531,849.71,848.57,0.78512695]
[1757026709593,0.20485531,849.71,848.58,0.78512695]
[1757026710591,0.20485531,849.71,848.59,0.78512695]
[1757026711392,0.20485531,849.71,848.63,0.78512695]
[1757026711697,0.79081308,850.19,848.63,0.78512695]
[1757026711892,0.20481311,849.78,848.63,0.78512695]
[1757026712387,0.20481311,849.78,848.64,0.78512695]
[1757026713192,0.20481311,849.78,848.63,0.78512695]
[1757026713399,0.20481311,849.78,848.64,0.78512695]
[1757026714088,0.20481311,849.78,848.63,0.78512695]
[1757026714497,0.20481311,849.78,848.64,0.78512695]
[1757026714993,0.20481311,849.78,848.65,0.78512695]
[1757026715200,0.20481311,849.78,848.64,0.78512695]
[1757026715388,0.20481311,849.78,848.65,0.78512695]
[1757026716290,0.20481311,849.78,848.66,0.78512695]
[1757026717290,0.20481311,849.78,848.69,0.78512695]
[1757026718091,0.20481311,849.78,848.75,0.78512695]
[1757026718294,0.20481311,849.78,848.76,0.78512695]
[1757026718490,0.20481311,849.78,848.77,0.78512695]
[1757026719194,0.20481311,849.78,848.75,0.78512695]
[1757026719794,0.20481311,849.78,848.65,0.78512695]
[1757026719992,0.20481311,849.78,848.61,0.78512695]
[1757026720293,0.20481311,849.78,848.62,0.78512695]
[1757026720690,0.20481311,849.78,848.6,0.78512695]
[1757026721394,0.20481311,849.78,848.67,0.78512695]
[1757026721798,0.20481311,849.78,848.66,0.78512695]
[1757026722499,0.20481311,849.78,848.68,0.78512695]
[1757026722694,0.20481311,849.78,848.67,0.78512695]
[1757026722897,0.20481311,849.78,848.66,0.78512695]
[1757026723196,0.20481311,849.78,848.67,0.78512695]
[1757026723501,0.20481311,849.78,848.69,0.78512695]
[1757026724397,0.20481311,849.78,848.65,0.78512695]
[1757026724601,0.20481311,849.78,848.65,0.78459796]
[1757026725302,0.20481311,849.78,848.69,0.78459796]
[1757026726508,0.20481311,849.78,848.71,0.78459796]
[1757026727302,0.20481311,849.78,848.73,0.78459796]
[1757026728407,0.20481311,849.78,848.75,0.78459796]
[1757026729412,0.20481311,849.78,848.77,0.78459796]
[1757026729702,0.20481311,849.78,848.76,0.78459796]
[1757026730104,0.20481311,849.78,848.77,0.78459796]
[1757026730303,0.20481311,849.78,848.78,0.78459796]
[1757026731305,0.20481311,849.78,848.8,0.78459796]
[1757026731509,0.20481311,849.78,848.78,0.78459796]
[1757026731809,0.20481311,849.78,848.79,0.78459796]
[1757026732109,0.20481311,849.78,848.8,0.78459796]
[1757026732304,0.20481311,849.78,848.83,0.78459796]
[1757026733106,0.20481311,849.78,848.84,0.78459796]
[1757026733707,0.20481311,849.78,848.83,0.78459796]
[1757026733910,0.20481311,849.78,848.82,0.78459796]
[1757026734111,0.78788488,849.77,848.86,0.78459796]
[1757026735310,0.78788488,849.76,848.86,0.78459796]
[1757026735511,0.78788488,849.76,848.87,0.78459796]
[1757026736113,0.78788488,849.77,848.88,0.78459796]
[1757026736311,0.78788488,849.76,848.89,0.78459796]
[1757026736511,0.78788488,849.75,848.89,0.78459796]
[1757026737314,0.78788488,849.75,848.9,0.78459796]
[1757026737717,0.78788488,849.72,848.76,0.78459796]
[1757026738316,0.78788488,849.71,848.76,0.78459796]
[1757026738516,0.78788488,849.73,848.74,0.78459796]
[1757026738824,0.78788488,849.67,848.67,0.78459796]
[1757026739316,0.20481311,849.78,847.08,3.7171062]
[1757026739317,0.78788488,849.66,848.68,0.78459796]
[1757026740914,0.78788488,849.63,848.68,0.78459796]
[1757026741122,0.78788488,849.63,848.69,0.78459796]
[1757026741329,0.78788488,849.59,848.73,0.78459796]
[1757026741517,0.78788488,849.59,848.72,0.78459796]
[1757026741915,0.78788488,849.57,848.74,0.78459796]
[1757026742114,0.78788488,849.58,848.75,0.78459796]
[1757026743119,0.78788488,849.58,848.76,0.78459796]
[1757026744316,0.78788488,849.58,847.86,2.6550758]
[1757026744317,0.78788488,849.57,848.79,0.78459796]
[1757026744520,0.78788488,849.56,848.77,0.78459796]
[1757026746123,0.78788488,849.55,848.78,0.78459796]
[1757026748027,0.78788488,849.53,848.77,0.78459796]
[1757026748926,0.78788488,849.53,848.76,0.78459796]
[1757026750227,0.78788488,849.54,848.76,0.78459796]
[1757026750624,0.78788488,849.57,848.74,0.78459796]
[1757026750927,0.78788488,849.56,848.74,0.78459796]
[1757026754629,0.78788488,849.56,848.75,0.78459796]
[1757026755027,0.78788488,849.56,848.74,0.78459796]
[1757026755527,0.78788488,849.57,848.73,0.78459796]
[1757026756125,0.78788488,849.58,848.73,0.78459796]
[1757026756427,0.78788488,849.63,848.78,0.78459796]
[1757026757331,0.78788488,849.63,848.79,0.78459796]
[1757026757828,0.78788488,849.63,848.78,0.78459796]
[1757026758229,0.78788488,849.63,848.79,0.78459796]
[1757026760129,0.78788488,849.63,848.78,0.78459796]
[1757026760327,0.78788488,849.6,848.8,0.78459796]
[1757026761131,0.78788488,849.61,848.8,0.78459796]
[1757026761328,0.78788488,849.6,848.8,0.78459796]
[1757026762332,0.78788488,849.59,848.79,0.78459796]
[1757026763739,0.78788488,849.6,848.78,0.78459796]
[1757026764838,0.78788488,849.62,848.79,0.78459796]
[1757026765036,0.78788488,849.64,848.82,0.78459796]
[1757026765441,0.78788488,849.63,848.83,0.78459796]
[1757026766242,0.78788488,849.62,848.84,0.78459796]
[1757026767438,0.78788488,849.61,848.83,0.78459796]
[1757026767640,0.20481311,849.78,848.83,0.78459796]
[1757026767641,0.78788488,849.6,848.83,0.78459796]
[1757026768438,0.78788488,849.61,848.82,0.78459796]
[1757026769243,0.78788488,849.6,848.83,0.78459796]
[1757026769440,0.78788488,849.59,848.82,0.78459796]
[1757026769650,0.78788488,849.58,848.81,0.78459796]
[1757026771042,0.78788488,849.57,848.81,0.78459796]
[1757026771242,0.78788488,849.57,848.82,0.78459796]
[1757026772740,0.78788488,849.6,848.8,0.78459796]
[1757026773742,0.78788488,849.59,848.81,0.78459796]
[1757026774138,0.78788488,849.58,848.82,0.78459796]
[1757026774338,0.78788488,849.59,848.81,0.78459796]
[1757026775341,0.78788488,849.59,848.82,0.78459796]
[1757026776145,0.78788488,849.58,848.82,0.78459796]
[1757026776945,0.78788488,849.57,848.82,0.78459796]
[1757026777142,0.78788488,849.57,848.83,0.78459796]
[1757026777346,0.78788488,849.56,848.83,0.78459796]
[1757026777540,0.78788488,849.55,848.82,0.78459796]
[1757026777742,0.78788488,849.55,848.81,0.78459796]
[1757026778246,0.78788488,849.53,848.81,0.78459796]
[1757026778742,0.78788488,849.55,848.72,0.78459796]
[1757026779247,0.78788488,849.54,848.72,0.78459796]
[1757026779846,0.78788488,849.54,848.73,0.78459796]
[1757026780242,0.78788488,849.53,848.73,0.78459796]
[1757026780446,0.78788488,849.54,848.73,0.78459796]
[1757026780646,0.78788488,849.54,848.74,0.78459796]
[1757026781642,0.78788488,849.53,848.75,0.78459796]
[1757026782547,0.78788488,849.53,848.76,0.78459796]
[1757026782948,0.78788488,849.53,848.75,0.78459796]
[1757026783249,0.78788488,849.52,848.75,0.78459796]
[1757026784152,0.78788488,849.52,848.76,0.78459796]
[1757026785151,0.78788488,849.51,848.76,0.78459796]
[1757026786350,0.78788488,849.53,848.75,0.78459796]
[1757026786550,0.78788488,849.54,848.75,0.78459796]
[1757026786753,0.78788488,849.53,848.75,0.78459796]
[1757026788555,0.78788488,849.49,848.78,0.78459796]
[1757026789352,1.0610522,849.67,848.78,0.78459796]
[1757026789852,1.0610522,849.67,848.6,1.0620303]
[1757026791052,0.20481311,849.78,848.45,1.5930455]
[1757026791256,0.79348688,849.46,848.8,0.79051392]
[1757026791757,1.0579825,849.63,848.63,1.0540185]
[1757026791958,0.79348693,849.46,848.8,0.79051392]
[1757026793057,0.79348693,849.46,848.77,0.79051392]
[1757026793358,0.79348693,849.47,848.78,0.79051392]
[1757026794357,0.79348693,849.46,848.79,0.79051392]
[1757026794557,0.79348693,849.46,848.6,1.0540185]
[1757026794558,0.79348693,849.46,848.78,0.79051392]
[1757026795254,0.79348693,849.46,847.62,2.6550758]
[1757026795255,0.79348693,849.3,848.61,0.79051392]
[1757026795454,0.20481311,849.78,848.56,0.79051392]
[1757026795455,0.79348693,849.36,848.56,0.79051392]
[1757026795758,0.79348693,849.37,848.57,0.79051392]
[1757026796254,0.79348693,849.37,848.56,0.79051392]
[1757026797156,0.79348693,849.38,848.56,0.79051392]
[1757026798262,0.79348693,849.38,848.55,0.79051392]
[1757026799161,0.79348693,849.39,848.54,0.79051392]
[1757026799358,0.79348693,849.4,848.54,0.79051392]
[1757026800558,0.79348693,849.39,848.54,0.79051392]
[1757026800757,0.79348693,849.4,848.55,0.79051392]
[1757026800961,0.79348693,849.38,848.58,0.79051392]
[1757026801159,0.79348693,849.45,848.65,0.79051392]
[1757026801361,0.79348693,849.45,848.64,0.79051392]
[1757026801658,0.79348693,849.46,848.66,0.79051392]
[1757026802357,0.79348693,849.46,848.65,0.79051392]
[1757026803160,0.79348693,849.44,848.67,0.79051392]
[1757026803363,0.79348693,849.41,848.69,0.79051392]
[1757026803564,0.79348693,849.41,848.68,0.79051392]
[1757026803864,0.79348693,849.43,848.77,0.79051392]
[1757026805361,0.79348693,849.44,848.76,0.79051392]
[1757026805964,0.79348693,849.43,848.76,0.79051392]
[1757026806765,0.79348693,849.41,848.74,0.79051392]
[1757026807160,0.79348693,849.42,848.74,0.79051392]
[1757026808065,0.79348693,849.41,848.74,0.79051392]
[1757026810863,0.79348693,849.42,848.75,0.79051392]
[1757026811366,0.79348693,849.42,848.74,0.79051392]
[1757026812366,0.79348693,849.43,848.74,0.79051392]
[1757026812866,0.79348693,849.42,848.74,0.79051392]
[1757026813068,0.79348693,849.41,848.74,0.79051392]
[1757026814570,0.20481311,849.78,848.74,0.79051392]
[1757026814571,0.79348693,849.42,848.74,0.79051392]
[1757026815270,0.79348693,849.4,848.75,0.79051392]
[1757026815969,0.79348693,849.39,848.74,0.79051392]
[1757026816170,0.79348693,849.42,848.63,0.79051392]
[1757026816369,0.79348693,849.38,848.59,0.79051392]
[1757026816666,0.79348693,849.38,848.58,0.79051392]
[1757026817272,0.79348693,849.42,848.56,0.79051392]
[1757026817472,0.79348693,849.38,848.53,0.79051392]
[1757026818268,0.79348693,849.39,848.52,0.79051392]
[1757026819676,0.79348693,849.4,848.51,0.79051392]
[1757026819972,0.79348693,849.36,848.54,0.79051392]
[1757026820272,0.79348693,849.37,848.53,0.79051392]
[1757026820473,0.79348693,849.37,848.54,0.79051392]
[1757026820670,0.79348693,849.38,848.55,0.79051392]
[1757026821277,0.79348693,849.46,848.62,0.79051392]
[1757026821576,0.79348693,849.49,848.65,0.79051392]
[1757026821773,0.79348693,849.48,848.64,0.79051392]
[1757026822476,0.79348693,849.47,848.74,0.79051392]
[1757026822872,0.79348693,849.46,848.73,0.79051392]
[1757026824078,0.79348693,849.45,848.74,0.79051392]
[1757026824276,0.79348693,849.43,848.73,0.79051392]
[1757026824481,0.79348693,849.42,848.74,0.79051392]
[1757026824681,0.79348693,849.41,848.75,0.79051392]
[1757026824882,0.79348693,849.4,848.74,0.79051392]
[1757026825377,0.79348693,849.4,848.75,0.79051392]
[1757026826282,0.79348693,849.4,848.76,0.79051392]
[1757026826482,0.79348693,849.47,848.78,0.79051392]
[1757026827084,0.79348693,849.49,848.79,0.79051392]
[1757026827685,0.79348693,849.57,848.75,0.79051392]
[1757026827886,0.79348693,849.58,848.75,0.79051392]
[1757026828086,0.79348693,849.63,848.8,0.79051392]
[1757026829193,0.79348693,849.64,848.8,0.79051392]
[1757026829395,0.79348693,849.63,848.8,0.79051392]
[1757026829687,0.79348693,849.65,848.82,0.79051392]
[1757026831092,0.79348693,849.66,848.83,0.79051392]
[1757026831493,0.79348693,849.73,848.89,0.79051392]
[1757026832189,0.79348693,849.74,848.88,0.79051392]
[1757026834089,0.20481311,849.78,847.62,2.6550758]
[1757026834090,0.79348693,849.75,848.87,0.79051392]
[1757026836189,0.79348693,849.76,848.86,0.79051392]
[1757026836595,0.79348693,849.7,848.9,0.79051392]
[1757026837797,0.79348693,849.68,848.91,0.79051392]
[1757026838192,0.79348693,849.69,848.91,0.79051392]
[1757026839196,0.79183264,849.71,848.91,0.78853001]
[1757026839696,0.20481311,849.78,847.93,2.6550758]
[1757026839697,0.79183264,849.69,848.92,0.78853001]
[1757026839891,0.99664575,849.78,848.91,0.78853001]
[1757026840096,0.20481311,849.78,848.91,0.78853001]
[1757026840694,0.20481311,849.78,848.9,0.78853001]
[1757026841398,0.20481311,849.78,848.89,0.78853001]
[1757026841697,0.20481311,849.78,848.92,0.78853001]
[1757026841893,0.20481311,849.78,848.88,0.78853001]
[1757026842097,0.20481311,849.78,848.93,0.78853001]
[1757026843197,0.20481311,849.78,848.92,0.78853001]
[1757026844193,0.20481311,849.78,848.91,0.78853001]
[1757026844597,0.20481311,849.78,848.95,0.78853001]
[1757026845194,0.20481311,849.78,848.94,0.78853001]
[1757026845393,0.20481311,849.78,848.95,0.78853001]
[1757026845598,0.20481311,849.78,849.01,0.78853001]
[1757026845894,0.20481311,849.78,849.0,0.78853001]
[1757026846399,0.79183264,850.06,848.99,0.78853001]
[1757026846695,0.20478659,849.88,849.01,0.78853001]
[1757026846899,0.20478659,849.88,849.06,0.78853001]
[1757026847197,0.20478659,849.88,849.08,0.78853001]
[1757026847400,0.20478659,849.88,849.07,0.78853001]
[1757026847595,0.20478659,849.88,849.08,0.78853001]
[1757026847796,0.79183264,850.14,849.13,0.78853001]
[1757026847998,0.2047643,850.0,849.17,0.78853001]
[1757026848197,0.2047643,850.0,849.15,0.78853001]
[1757026849301,0.2047643,850.0,849.12,0.78853001]
[1757026850202,0.2047643,850.0,849.1,0.78853001]
[1757026850401,0.2047643,850.0,849.11,0.78853001]
[1757026850702,0.2047643,850.0,849.08,0.78853001]
[1757026850902,0.2047643,850.0,849.09,0.78853001]
[1757026851098,0.2047643,850.0,849.07,0.78853001]
[1757026851399,0.2047643,850.0,849.09,0.78853001]
[1757026851800,0.2047643,850.0,849.08,0.78853001]
[1757026851998,0.2047643,850.0,849.09,0.78853001]
[1757026852200,0.2047643,850.0,849.05,0.78853001]
[1757026853106,0.2047643,850.0,849.03,0.78853001]
[1757026853606,0.2047643,850.0,849.02,0.78853001]
[1757026853906,0.2047643,850.0,849.03,0.78853001]
[1757026854205,0.2047643,850.0,849.01,0.78853001]
[1757026855406,0.2047643,850.0,849.0,0.78853001]
[1757026856208,0.2047643,850.0,848.98,0.78853001]
[1757026856411,0.2047643,850.0,848.91,0.78853001]
[1757026856613,0.2047643,850.0,848.84,0.78853001]
[1757026857112,0.2047643,850.0,848.83,0.78853001]
[1757026857813,0.2047643,850.0,848.82,0.78853001]
[1757026858108,0.2047643,850.0,848.83,0.78853001]
[1757026858309,0.2047643,850.0,848.91,0.78853001]
[1757026858512,0.2047643,850.0,848.89,0.78853001]
[1757026859209,0.2047643,850.0,848.86,0.78853001]
[1757026859409,0.2047643,850.0,848.84,0.78853001]
[1757026860713,0.2047643,850.0,848.87,0.78853001]
[1757026860914,0.2047643,850.0,848.88,0.78853001]
[1757026861513,0.2047643,850.0,848.79,0.78853001]
[1757026862010,0.2047643,850.0,848.8,0.78853001]
[1757026862714,0.2047643,850.0,848.79,0.78853001]
[1757026863112,0.2047643,850.0,848.78,0.78853001]
[1757026863411,0.2047643,850.0,848.73,0.78853001]
[1757026863613,0.99659694,850.0,848.73,0.78853001]
[1757026864314,0.99659694,850.0,848.74,0.78853001]
[1757026865114,0.2047643,850.0,848.74,0.78853001]
[1757026865314,0.99659694,850.0,848.74,0.78853001]
[1757026867117,0.99659694,850.0,848.75,0.78853001]
[1757026867726,0.79183264,849.98,848.76,0.78853001]
[1757026868231,0.2047643,850.0,848.83,0.78853001]
[1757026868720,0.2047643,850.0,848.79,0.78853001]
[1757026869223,0.2047643,850.0,848.77,0.78853001]
[1757026870322,0.2047643,850.0,848.78,0.78853001]
[1757026870819,0.2047643,850.0,848.76,0.78853001]
[1757026871233,0.2047643,850.0,848.75,0.78853001]
[1757026873024,0.2047643,850.0,848.77,0.78853001]
[1757026873223,0.2047643,850.0,848.79,0.78853001]
[1757026875225,0.2047643,850.0,848.8,0.78853001]
[1757026875726,0.2047643,850.0,848.79,0.78853001]
[1757026876020,0.2047643,850.0,848.8,0.78853001]
[1757026876225,0.2047643,850.0,848.79,0.78853001]
[1757026876925,0.2047643,850.0,848.8,0.78853001]
[1757026877225,0.2047643,850.0,848.81,0.78853001]
[1757026878021,0.2047643,850.0,848.8,0.78853001]
[1757026878226,0.2047643,850.0,848.81,0.78853001]
[1757026878426,0.99659694,850.0,848.82,0.78853001]
[1757026878623,0.2047643,850.0,848.82,0.78853001]
[1757026878835,0.99659694,850.0,848.82,0.78853001]
[1757026879037,0.79183264,849.97,848.72,0.78853001]
[1757026879224,0.79183264,849.95,848.74,0.78853001]
[1757026880229,0.79183264,849.94,848.76,0.78853001]
[1757026880524,0.79183264,849.94,848.75,0.78853001]
[1757026880725,0.79183264,849.97,848.74,0.78853001]
[1757026881125,0.79183264,849.96,848.75,0.78853001]
[1757026881429,0.79183264,849.95,848.7,0.78853001]
[1757026881629,0.79183264,849.94,848.69,0.78853001]
[1757026881825,0.79183264,849.93,848.69,0.78853001]
[1757026882132,0.79183264,849.9,848.71,0.78853001]
[1757026882327,0.79183264,849.8,848.65,0.78853001]
[1757026883229,0.79183264,849.79,848.65,0.78853001]
[1757026884127,0.79183264,849.79,848.66,0.78853001]
[1757026885032,0.79183264,849.73,848.7,0.78853001]
[1757026886132,0.79183264,849.72,848.71,0.78853001]
[1757026886328,0.79012991,849.72,848.71,0.78707179]
[1757026886529,0.79012991,849.73,848.7,0.78707179]
[1757026887035,0.79012991,849.73,848.69,0.78707179]
[1757026887230,0.79012991,849.72,848.69,0.78707179]
[1757026889232,0.79012991,849.72,848.51,1.0540185]
[1757026889233,0.79012991,849.72,848.68,0.78707179]
[1757026890835,0.79012991,849.71,848.62,0.78707179]
[1757026891636,0.79012991,849.72,848.62,0.78707179]
[1757026891937,0.79012991,849.7,848.63,0.78707179]
[1757026892136,0.79012991,849.71,848.62,0.78707179]
[1757026894238,0.79012991,849.71,848.61,0.78707179]
[1757026895238,0.79012991,849.72,848.61,0.78707179]
[1757026896237,0.79012991,849.7,848.62,0.78707179]
[1757026897137,0.79012991,849.7,848.61,0.78707179]
[1757026897341,0.79012991,849.69,848.62,0.78707179]
[1757026898237,0.79012991,849.69,848.61,0.78707179]
[1757026898839,0.79012991,849.72,848.53,0.78707179]
[1757026899141,0.79012991,849.75,848.51,0.78707179]
[1757026900038,0.79012991,849.72,848.46,0.78707179]
[1757026900237,0.79012991,849.72,848.23,1.0540185]
[1757026900238,0.79012991,849.73,848.45,0.78707179]
[1757026900538,0.79012991,849.72,848.46,0.78707179]
[1757026900742,0.79012991,849.61,848.48,0.78707179]
[1757026901341,0.79012991,849.62,848.47,0.78707179]
[1757026902243,0.79012991,849.63,848.46,0.78707179]
[1757026903045,0.78899518,849.63,848.46,0.78624212]